fUST/lending_fUST_20260212
["ID","MTS","AMOUNT","RATE_DAILY","PERIOD"]
[405158390,1770892239603,-500.0,0.00023775,2]
[405158391,1770892239612,-500.0,0.00023775,2]
[405158393,1770892239622,-500.0,0.00023775,2]
[405158395,1770892239631,-500.0,0.00023775,2]
[405158397,1770892239641,-500.0,0.00023775,2]
[405158399,1770892239650,-500.0,0.00023775,2]
[405158401,1770892239660,-500.0,0.00023775,2]
[405158403,1770892239670,-500.0,0.00023775,2]
[405158405,1770892239679,-500.0,0.00023775,2]
[405158407,1770892239689,-500.0,0.00023775,2]
[405158409,1770892239699,-500.0,0.00023775,2]
[405158411,1770892239709,-500.0,0.00023775,2]
[405158413,1770892239719,-500.0,0.00023775,2]
[405158415,1770892239728,-500.0,0.00023775,2]
[405158417,1770892239738,-500.0,0.00023775,2]
[405158419,1770892239748,-500.0,0.00023775,2]
[405158421,1770892239758,-500.0,0.00023775,2]
[405158423,1770892239767,-500.0,0.00023775,2]
[405158425,1770892239777,-500.0,0.00023775,2]
[405158427,1770892239787,-500.0,0.00023775,2]
[405158429,1770892239796,-500.0,0.00023775,2]
[405158431,1770892239806,-500.0,0.00023775,2]
[405158433,1770892239816,-500.0,0.00023775,2]
[405158435,1770892239828,-500.0,0.00023775,2]
[405158437,1770892239837,-499.99999999,0.00023775,2]
[405158439,1770892239847,-499.99999999,0.00023775,2]
[405158441,1770892239857,-1767.91,0.00023775,10]
[405158443,1770892239867,-3051.95,0.00023775,10]
[405158445,1770892239877,-2543.29,0.00023775,10]
[405158447,1770892239887,-7401.56650288,0.00023785,2]
[405158449,1770892239900,-42598.43349712,0.00023785,2]
[405158451,1770892239910,-153.655293,0.00023785,2]
[405158453,1770892239919,-204649.99536893,0.00023786,2]
[405158455,1770892239931,-4916.50949882,0.00023786,2]
[405159202,1770892291079,1007.89249188,0.0002352,2]
[405159203,1770892319859,-1146.3908198,0.00023685,2]
[405159209,1770892499491,199.23047263,0.00023,2]
[405159213,1770892532709,1000.0,0.00023,2]
[405159215,1770892638956,1982.3540825,0.00022772,2]
[405159314,1770892864127,154.86735458,0.00021918,2]
[405159318,1770892895061,498.16150573,0.00022781,2]
[405159319,1770892901279,254.11103783,0.00022779,2]
[405159320,1770892903965,457.39986809,0.00022779,2]
[405159321,1770892906525,812.34216572,0.00022779,2]
[405159328,1770892984151,250.0,0.0002241,2]
[405159331,1770893027545,250.0,0.00023342,2]
[405159332,1770893057129,869.85297016,0.00023489,2]
[405159336,1770893110142,2078.6355887,0.00022781,2]
[405159337,1770893114018,24259.0618363,0.00022938,2]
[405159338,1770893114648,1040.58117977,0.00022779,2]
[405159339,1770893117725,1849.92209736,0.00022779,2]
[405159340,1770893120597,2887.61277385,0.00022779,2]
[405159341,1770893134489,578.10065543,0.00022779,2]
[405159448,1770893438707,-326.7769977,0.00023589,2]
[405159450,1770893438717,-208.38894004,0.00023589,2]
[405159451,1770893438726,-151.0,0.00023755,2]
[405159454,1770893438736,-151.0,0.00023755,2]
[405159456,1770893438747,-151.0,0.00023755,2]
[405159457,1770893438756,-164.142587,0.00023755,2]
[405159459,1770893438766,-300.0,0.00023764,2]
[405159462,1770893438775,-1200.0,0.00023764,2]
[405159464,1770893438784,-300.0,0.00023765,2]
[405159465,1770893438793,-300.0,0.00023765,2]
[405159468,1770893438802,-300.0,0.00023765,2]
[405159470,1770893438812,-300.0,0.00023765,2]
[405159471,1770893438821,-500.0,0.0002377,2]
[405159473,1770893438831,-265.95747278,0.0002377,2]
[405159476,1770893438843,-201.93286099,0.00023772,2]
[405159478,1770893438854,-250.0,0.00023772,2]
[405159480,1770893438863,-209.40437684,0.00023772,2]
[405159482,1770893438873,-250.0,0.00023772,2]
[405159483,1770893438883,-217.15233878,0.00023772,2]
[405159486,1770893438896,-250.0,0.00023772,2]
[405159488,1770893438906,-250.0,0.00023772,2]
[405159490,1770893438917,-225.18697532,0.00023772,2]
[405159492,1770893438926,-250.0,0.00023772,2]
[405159494,1770893438936,-250.0,0.00023772,2]
[405159496,1770893438946,-250.0,0.00023772,2]
[405159498,1770893438956,-233.51889341,0.00023772,2]
[405159500,1770893438966,-250.0,0.00023772,2]
[405159502,1770893438976,-250.0,0.00023772,2]
[405159504,1770893438985,-500.0,0.00023772,2]
[405159506,1770893438995,-250.0,0.00023772,2]
[405159508,1770893439005,-250.0,0.00023772,2]
[405159510,1770893439015,-500.0,0.00023772,2]
[405159512,1770893439024,-250.0,0.00023772,2]
[405159514,1770893439034,-242.15909246,0.00023772,2]
[405159516,1770893439044,-341.52582096,0.00023772,2]
[405159518,1770893439054,-500.0,0.00023772,2]
[405159520,1770893439063,-250.0,0.00023772,2]
[405159522,1770893439073,-500.0,0.00023772,2]
[405159524,1770893439082,-250.0,0.00023772,2]
[405159526,1770893439092,-500.0,0.00023772,2]
[405159528,1770893439103,-500.0,0.00023772,2]
[405159530,1770893439112,-250.0,0.00023772,2]
[405159532,1770893439121,-250.0,0.00023772,2]
[405159534,1770893439131,-250.0,0.00023772,2]
[405159536,1770893439141,-251.11897888,0.00023772,2]
[405159538,1770893439151,-250.0,0.00023772,2]
[405159540,1770893439166,-250.0,0.00023772,2]
[405159542,1770893439184,-250.0,0.00023772,2]
[405159544,1770893439193,-250.0,0.00023772,2]
[405159546,1770893439203,-250.0,0.00023772,2]
[405159548,1770893439212,-250.0,0.00023772,2]
[405159550,1770893439222,-260.4103811,0.00023772,2]
[405159552,1770893439232,-250.0,0.00023772,2]
[405159554,1770893439242,-250.0,0.00023772,2]
[405159556,1770893439251,-270.0455652,0.00023772,2]
[405159558,1770893439261,-250.0,0.00023772,2]
[405159560,1770893439272,-250.0,0.00023772,2]
[405159562,1770893439282,-500.0,0.00023772,2]
[405159564,1770893439291,-250.0,0.00023772,2]
[405159567,1770893439310,-280.03725112,0.00023772,2]
[405159570,1770893439327,-250.0,0.00023772,2]
[405159572,1770893439340,-250.0,0.00023772,2]
[405159575,1770893439356,-500.0,0.00023772,2]
[405159578,1770893439371,-250.0,0.00023772,2]
[405159580,1770893439387,-250.0,0.00023772,2]
[405159583,1770893439403,-290.39862941,0.00023772,2]
[405159586,1770893439419,-250.0,0.00023772,2]
[405159588,1770893439433,-250.0,0.00023772,2]
[405159591,1770893439448,-500.0,0.00023772,2]
[405159593,1770893439462,-250.0,0.00023772,2]
[405159596,1770893439477,-250.0,0.00023772,2]
[405159598,1770893439490,-301.1433787,0.00023772,2]
[405159600,1770893439502,-250.0,0.00023772,2]
[405159603,1770893439515,-250.0,0.00023772,2]
[405159605,1770893439530,-500.0,0.00023772,2]
[405159608,1770893439543,-250.0,0.00023772,2]
[405159610,1770893439558,-250.0,0.00023772,2]
[405159612,1770893439574,-250.0,0.00023772,2]
[405159614,1770893439587,-500.0,0.00023772,2]
[405159615,1770893439597,-250.0,0.00023772,2]
[405159618,1770893439612,-250.0,0.00023772,2]
[405159620,1770893439627,-250.0,0.00023772,2]
[405159621,1770893439639,-500.0,0.00023772,2]
[405159623,1770893439652,-250.0,0.00023772,2]
[405159626,1770893439666,-250.0,0.00023772,2]
[405159627,1770893439677,-250.0,0.00023772,2]
[405159629,1770893439688,-500.0,0.00023772,2]
[405159631,1770893439700,-250.0,0.00023772,2]
[405159633,1770893439713,-266.14051245,0.00023772,2]
[405159635,1770893439725,-500.0,0.00023772,2]
[405159637,1770893439739,-250.0,0.00023772,2]
[405159639,1770893439752,-500.0,0.00023772,2]
[405159640,1770893439764,-250.0,0.00023772,2]
[405159642,1770893439776,-500.0,0.00023772,2]
[405159644,1770893439789,-250.0,0.00023772,2]
[405159646,1770893439801,-500.0,0.00023772,2]
[405159648,1770893439814,-250.0,0.00023772,2]
[405159650,1770893439826,-500.0,0.00023772,2]
[405159652,1770893439843,-250.0,0.00023772,2]
[405159654,1770893439858,-500.0,0.00023772,2]
[405159656,1770893439870,-250.0,0.00023772,2]
[405159658,1770893439884,-256.85353186,0.00023772,2]
[405159660,1770893439899,-500.0,0.00023772,2]
[405159661,1770893439913,-500.0,0.00023774,2]
[405159663,1770893439925,-976.46,0.00023776,3]
[405159666,1770893439938,-2811.21,0.00023776,3]
[405159668,1770893439950,-2219.32,0.00023776,3]
[405159669,1770893439962,-1109.66,0.00023776,3]
[405159671,1770893439974,-554.83,0.00023776,3]
[405159674,1770893439987,-277.42,0.00023776,3]
[405159676,1770893439999,-832.27,0.00023776,3]
[405159678,1770893440012,-915.3908199,0.00023784,2]
[405159679,1770893440025,-500.0,0.00023784,2]
[405159681,1770893440039,-500.0,0.00023784,2]
[405159683,1770893440052,-500.0,0.00023784,2]
[405159685,1770893440064,-10646.3287984,0.00023784,2]
[405159687,1770893440077,-151.0,0.00023784,2]
[405159689,1770893440090,-286.8942015,0.00023784,2]
[405159691,1770893440102,-165.051922,0.00023784,2]
[405159693,1770893440112,-5254.1081009,0.00023785,2]
[405159703,1770893440228,-500.0,0.00023785,2]
[405159705,1770893440238,-500.0,0.00023785,2]
[405159707,1770893440248,-500.0,0.00023785,2]
[405159708,1770893440258,-500.0,0.00023785,2]
[405159710,1770893440267,-500.0,0.00023785,2]
[405159712,1770893440276,-500.0,0.00023785,2]
[405159713,1770893440286,-332.16753467,0.00023785,2]
[405159715,1770893440296,-153.655293,0.00023785,2]
[405159717,1770893440305,-151.0,0.00023785,2]
[405159719,1770893440314,-6949.7571488,0.00023785,2]
[405159720,1770893440323,-152715.71492085,0.00023786,2]
[405159722,1770893440332,-151.0,0.00023786,2]
[405159724,1770893440342,-10453.36,0.000238,2]
[405159726,1770893440351,-168.0,0.00023811,2]
[405159727,1770893440361,-1103.72791836,0.00023943,3]
[405159729,1770893440371,-357.14023865,0.00023978,2]
[405159731,1770893440380,-642.85242957,0.00023978,2]
[405159733,1770893440390,-1141.70591492,0.00023978,2]
[405159735,1770893440400,-424.57883616,0.00023978,2]
[405159736,1770893440409,-764.24190509,0.00023978,2]
[405159738,1770893440419,-1357.29362344,0.00023978,2]
[405159740,1770893440428,-221.57167241,0.00023978,2]
[405159741,1770893440437,-398.82901034,0.00023978,2]
[405159743,1770893440446,-708.32032237,0.00023978,2]
[405159745,1770893440455,-367.5276991,0.00023978,2]
[405159747,1770893440464,-419.61162446,0.00023978,2]
[405159748,1770893440474,-272.60200943,0.00023978,2]
[405159750,1770893440488,-434.72583732,0.0002398,3]
[405159752,1770893440497,-701.40399581,0.0002398,3]
[405159754,1770893440506,-257.81254457,0.0002398,3]
[405159755,1770893440515,-833.70770255,0.0002398,3]
[405159757,1770893440524,-2754.53754948,0.00024,2]
[405159759,1770893440537,-11308.09608514,0.00024,2]
[405159761,1770893440546,-1743.21910208,0.00024,2]
[405159762,1770893440555,-467.58960116,0.00024,2]
[405159764,1770893440564,-197.97,0.00024,14]
[405159766,1770893440573,-1762.73,0.00024,2]
[405159768,1770893440582,-15675.42513884,0.00024,30]
[405159769,1770893440592,-1000.0,0.00024,2]
[405159771,1770893440602,-151.0,0.00024,2]
[405159773,1770893440612,-490.68361697,0.00024008,2]
[405159775,1770893440621,-535.42296537,0.00024032,3]
[405159776,1770893440630,-742.60909304,0.000241,3]
[405159778,1770893440639,-168.0,0.00024127,2]
[405159780,1770893440649,-168.0,0.0002417,2]
[405159782,1770893440658,-2194.784,0.000242,2]
[405159783,1770893440667,-1377.0,0.000242,2]
[405159785,1770893440676,-633.0,0.000242,2]
[405159787,1770893440685,-151.0,0.00024236,10]
[405159789,1770893440695,-945.76551242,0.00024279,2]
[405159791,1770893440704,-871.45410374,0.00024405,2]
[405159792,1770893440714,-186.73,0.000245,2]
[405159794,1770893440723,-168.0,0.00024597,2]
[405159796,1770893440732,-23639.79722796,0.0002465,2]
[405159798,1770893440741,-516.1214771,0.0002465,2]
[405159799,1770893440750,-510.0015,0.0002465,2]
[405159801,1770893440758,-510.0015,0.0002465,3]
[405159803,1770893440768,-510.0015,0.0002465,5]
[405159804,1770893440777,-265.917218,0.0002465,2]
[405159806,1770893440787,-150.0,0.00024658,2]
[405159808,1770893440797,-2898.1469214,0.00024774,2]
[405159810,1770893440806,-1062.94312007,0.00024776,2]
[405159812,1770893440815,-191.67,0.000248,2]
[405159813,1770893440824,-168.0,0.000248,2]
[405159815,1770893440836,-168.0,0.00024825,2]
[405159817,1770893440846,-168.0,0.0002487,2]
[405159819,1770893440856,-615.2022996,0.00024879,2]
[405159821,1770893440865,-168.0,0.00024898,2]
[405159822,1770893440876,-20874.52730953,0.000249,2]
[405159824,1770893440888,-4968.05996593,0.000249,2]
[405159834,1770893440999,-676.47,0.000249,2]
[405159836,1770893441009,-1173.95140673,0.000249,2]
[405160317,1770893446579,-250.0,0.00023772,2]
[405160318,1770893446589,-250.0,0.00023772,2]
[405160319,1770893446598,-250.0,0.00023772,2]
[405160320,1770893446607,-250.0,0.00023772,2]
[405160321,1770893446617,-250.0,0.00023772,2]
[405160322,1770893446627,-250.0,0.00023772,2]
[405160323,1770893446636,-250.0,0.00023772,2]
[405160324,1770893446646,-250.0,0.00023772,2]
[405160325,1770893446655,-15101.07112966,0.000249,2]
[405160589,1770894019504,2000.0,0.00022869,2]
[405160590,1770894020112,649.99999996,0.00022869,2]
[405160591,1770894020137,1424.00000004,0.00022869,2]
[405160592,1770894020750,2150.738,0.00022869,2]
[405160593,1770894021367,2230.315306,0.00022869,2]
[405160594,1770894021977,2312.83697232,0.00022869,2]
[405160595,1770894022727,2398.4119403,0.0002324,2]
[405160596,1770894035333,205.90966,0.00027,120]
[405160598,1770894065150,-245.9968019,0.00023565,2]
[405160599,1770894069438,-249.35732485,0.00023565,2]
[405160602,1770894125072,-342.2128281,0.00023565,2]
[405160609,1770894320092,2000.0,0.00022869,2]
[405160610,1770894320702,2074.0,0.00022869,2]
[405160611,1770894321294,1775.96989227,0.00022869,2]
[405160612,1770894339802,8229.4522152,0.00022854,2]
[405160614,1770894408009,160.2196,0.00023514,2]
[405160674,1770894631822,-496.85870131,0.00023563,2]
[405160677,1770894631831,-334.6435344,0.00023614,2]
[405160679,1770894631840,-1200.0,0.00023663,2]
[405160681,1770894631850,-500.0,0.00023664,2]
[405160683,1770894631859,-300.0,0.00023664,2]
[405160686,1770894631868,-300.0,0.00023664,2]
[405160687,1770894631877,-44.12657892,0.00023664,2]
[405160690,1770894631888,-255.87342108,0.00023664,2]
[405160692,1770894631898,-300.0,0.00023664,2]
[405160694,1770894631907,-300.0,0.00023664,2]
[405160695,1770894631917,-101.20972655,0.00023665,2]
[405160708,1770894632028,-324.96049637,0.00023664,2]
[405160710,1770894632037,-5061.03444542,0.00023665,2]
[405160987,1770894639795,-3e-08,0.00023665,2]
[405161326,1770894643292,-33708.91095662,0.00023665,2]
[405161336,1770894643377,-426.697348,0.00023665,2]
[405161503,1770894645063,-2999.71667799,0.00023665,2]
[405161592,1770894645912,-7702.43084539,0.00023665,2]
[405161594,1770894645922,-3734.9112968,0.00023666,2]
[405161596,1770894645932,-500.0,0.00023666,2]
[405161598,1770894645942,-380.17771461,0.00023666,2]
[405161600,1770894645951,-2357.36914201,0.00023815,2]
[405161608,1770894646018,-676.63178927,0.00023815,2]
[405161610,1770894646027,-1282.18352482,0.00023917,3]
[405161612,1770894646036,-168.0,0.00023925,2]
[405161614,1770894646046,-156.02,0.0002396,2]
[405161616,1770894646055,-168.0,0.00023971,2]
[405161618,1770894646065,-250.0,0.00023976,2]
[405161620,1770894646075,-250.0,0.00023976,2]
[405161622,1770894646085,-250.0,0.00023976,2]
[405161624,1770894646095,-500.0,0.00023976,2]
[405161626,1770894646104,-264.40984106,0.00023976,2]
[405161628,1770894646113,-250.0,0.00023976,2]
[405161630,1770894646124,-500.0,0.00023976,2]
[405161632,1770894646134,-250.0,0.00023976,2]
[405161634,1770894646143,-500.0,0.00023976,2]
[405161636,1770894646152,-250.0,0.00023976,2]
[405161638,1770894646161,-500.0,0.00023976,2]
[405161640,1770894646170,-250.0,0.00023976,2]
[405161642,1770894646180,-250.0,0.00023976,2]
[405161645,1770894646190,-646.94196752,0.00023976,2]
[405161647,1770894646202,-250.0,0.00023976,2]
[405161649,1770894646212,-250.0,0.00023976,2]
[405161651,1770894646222,-250.0,0.00023976,2]
[405161653,1770894646231,-250.0,0.00023976,2]
[405161655,1770894646241,-250.0,0.00023976,2]
[405161657,1770894646251,-250.0,0.00023976,2]
[405161659,1770894646260,-250.0,0.00023976,2]
[405161661,1770894646269,-250.0,0.00023976,2]
[405161663,1770894646278,-250.0,0.00023976,2]
[405161665,1770894646288,-250.0,0.00023976,2]
[405161667,1770894646299,-250.0,0.00023976,2]
[405161669,1770894646308,-201.93286099,0.00023976,2]
[405161671,1770894646317,-250.0,0.00023976,2]
[405161673,1770894646327,-250.0,0.00023976,2]
[405161675,1770894646336,-250.0,0.00023976,2]
[405161677,1770894646345,-250.0,0.00023976,2]
[405161679,1770894646355,-250.0,0.00023976,2]
[405161681,1770894646364,-209.40437684,0.00023976,2]
[405161683,1770894646373,-250.0,0.00023976,2]
[405161685,1770894646383,-250.0,0.00023976,2]
[405161686,1770894646393,-250.0,0.00023976,2]
[405161688,1770894646403,-250.0,0.00023976,2]
[405161690,1770894646412,-217.15233878,0.00023976,2]
[405161693,1770894646421,-250.0,0.00023976,2]
[405161694,1770894646431,-250.0,0.00023976,2]
[405161696,1770894646440,-198.37833119,0.00023976,2]
[405161698,1770894646449,-225.18697532,0.00023976,2]
[405161700,1770894646458,-250.0,0.00023976,2]
[405161702,1770894646467,-250.0,0.00023976,2]
[405161704,1770894646476,-250.0,0.00023976,2]
[405161706,1770894646485,-159.39164934,0.00023976,2]
[405161708,1770894646494,-253.4084362,0.00023976,2]
[405161710,1770894646505,-233.51889341,0.00023976,2]
[405161712,1770894646514,-250.0,0.00023976,2]
[405161714,1770894646522,-242.15909246,0.00023976,2]
[405161716,1770894646531,-251.11897888,0.00023976,2]
[405161718,1770894646541,-260.4103811,0.00023976,2]
[405161720,1770894646550,-270.0455652,0.00023976,2]
[405161722,1770894646559,-280.03725112,0.00023976,2]
[405161724,1770894646569,-290.39862941,0.00023976,2]
[405161726,1770894646578,-370.60484008,0.00023976,2]
[405161728,1770894646587,-250.0,0.00023976,2]
[405161730,1770894646598,-250.0,0.00023976,2]
[405161732,1770894646607,-250.0,0.00023976,2]
[405161734,1770894646616,-250.0,0.00023976,2]
[405161736,1770894646626,-250.0,0.00023976,2]
[405161738,1770894646636,-289.60606437,0.00023976,2]
[405161740,1770894646648,-309.15612472,0.00023976,2]
[405161742,1770894646657,-250.0,0.00023976,2]
[405161744,1770894646667,-250.0,0.00023976,2]
[405161746,1770894646676,-250.0,0.00023976,2]
[405161748,1770894646685,-305.92716569,0.00023976,2]
[405161750,1770894646696,-500.0,0.00023976,2]
[405161752,1770894646705,-500.0,0.00023976,2]
[405161754,1770894646714,-500.0,0.00023976,2]
[405161756,1770894646724,-500.0,0.00023976,2]
[405161758,1770894646733,-500.0,0.00023976,2]
[405161767,1770894646815,-500.0,0.00023976,2]
[405161769,1770894646826,-500.0,0.00023976,2]
[405161772,1770894646836,-129.49369323,0.00023978,2]
[405161977,1770894650484,-500.0,0.00023976,2]
[405161980,1770894650506,-200.0,0.00023976,2]
[405162828,1770894659439,4842.72434955,0.0002352,2]
[405170151,1770894740082,-1014.48540681,0.00023564,2]
[405170338,1770894742051,-287.78254614,0.00023564,2]
[405170424,1770894744078,-478.39104371,0.00023564,2]
[405170434,1770894784179,1684.44297049,0.00023464,2]
[405170462,1770895187865,581.237398,0.00022726,2]
[405170467,1770895222809,600.0,0.00030136,120]
[405170480,1770895361794,500.0,0.0002339,2]
[405170481,1770895361991,500.0,0.00023445,2]
[405170482,1770895362156,500.0,0.000235,2]
[405170558,1770895418839,152.62979237,0.000235,2]
[405170603,1770895701006,424.3088042,0.000235,2]
[405170618,1770895827725,195.35813307,0.00013273,2]
[405170629,1770895831987,-367.24710722,0.00023554,2]
[405170667,1770895837891,-132.75289278,0.00023554,2]
[405170669,1770895837901,-2919.40722041,0.00023557,2]
[405170671,1770895837911,-342.89066371,0.00023559,2]
[405170673,1770895837920,-580.26721869,0.00023564,2]
[405170675,1770895837930,-500.0,0.00023609,2]
[405170677,1770895837939,-2258.36,0.00023653,10]
[405170679,1770895837948,-1881.96,0.00023653,10]
[405170681,1770895837957,-811.83491597,0.00023655,2]
[405170683,1770895837969,-388.16508403,0.00023655,2]
[405170685,1770895837979,-577.47234746,0.00023656,2]
[405170687,1770895837988,-500.0,0.00023656,2]
[405170689,1770895837997,-468.64976858,0.00023656,2]
[405170691,1770895838007,-500.0,0.00023656,2]
[405170693,1770895838016,-500.0,0.00023656,2]
[405170695,1770895838025,-500.0,0.00023656,2]
[405170697,1770895838035,-500.0,0.00023656,2]
[405170699,1770895838045,-500.0,0.00023656,2]
[405170702,1770895838055,-500.0,0.00023656,2]
[405170704,1770895838065,-65.71279993,0.00023656,2]
[405170708,1770895838100,-5.03766085,0.00023656,2]
[405170899,1770895839951,-429.24953922,0.00023656,2]
[405170901,1770895839962,-500.0,0.00023656,2]
[405170903,1770895839972,-196.09635181,0.00023656,2]
[405170906,1770895839983,-303.90364819,0.00023656,2]
[405170908,1770895839993,-334.55449891,0.00023656,2]
[405170910,1770895840003,-500.0,0.00023656,2]
[405170912,1770895840013,-500.0,0.00023656,2]
[405170914,1770895840023,-500.0,0.00023656,2]
[405170916,1770895840032,-515.5091567,0.00023656,2]
[405170918,1770895840041,-500.0,0.00023656,2]
[405170919,1770895840050,-500.0,0.00023656,2]
[405170922,1770895840060,-500.0,0.00023656,2]
[405170923,1770895840069,-500.0,0.00023656,2]
[405170925,1770895840078,-500.0,0.00023656,2]
[405170927,1770895840087,-500.0,0.00023656,2]
[405170929,1770895840096,-500.0,0.00023656,2]
[405170931,1770895840105,-500.0,0.00023656,2]
[405170933,1770895840115,-166.8326962,0.00023656,2]
[405170967,1770895840290,-3e-08,0.00023656,2]
[405171128,1770895845913,-333.16730377,0.00023656,2]
[405171129,1770895845924,-500.0,0.00023656,2]
[405171130,1770895845933,-500.0,0.00023656,2]
[405171131,1770895845943,-500.0,0.00023656,2]
[405171132,1770895845952,-500.0,0.00023656,2]
[405171133,1770895845962,-500.0,0.00023656,2]
[405171134,1770895845974,-500.0,0.00023656,2]
[405171135,1770895845983,-500.0,0.00023656,2]
[405171136,1770895845993,-500.0,0.00023656,2]
[405171137,1770895846002,-500.0,0.00023656,2]
[405171138,1770895846012,-500.0,0.00023656,2]
[405171139,1770895846022,-500.0,0.00023656,2]
[405171140,1770895846031,-500.0,0.00023656,2]
[405171141,1770895846041,-500.0,0.00023656,2]
[405171142,1770895846051,-500.0,0.00023656,2]
[405171143,1770895846061,-500.0,0.00023656,2]
[405171144,1770895846070,-500.0,0.00023656,2]
[405171145,1770895846079,-500.0,0.00023656,2]
[405171146,1770895846088,-500.0,0.00023656,2]
[405171147,1770895846098,-500.0,0.00023656,2]
[405171148,1770895846107,-500.0,0.00023656,2]
[405171149,1770895846116,-500.0,0.00023656,2]
[405171150,1770895846126,-500.0,0.00023656,2]
[405171151,1770895846135,-500.0,0.00023656,2]
[405171152,1770895846144,-552.12179326,0.00023656,2]
[405171153,1770895846154,-500.0,0.00023656,2]
[405171154,1770895846164,-619.83280898,0.00023656,2]
[405171155,1770895846174,-500.0,0.00023656,2]
[405171156,1770895846184,-500.0,0.00023656,2]
[405171157,1770895846193,-500.0,0.00023656,2]
[405171158,1770895846203,-500.0,0.00023656,2]
[405171159,1770895846213,-500.0,0.00023656,2]
[405171160,1770895846223,-500.0,0.00023656,2]
[405171161,1770895846233,-500.0,0.00023656,2]
[405171162,1770895846243,-100.72852356,0.00023656,2]
[405171164,1770895853707,5000.0,0.0002352,2]
[405171167,1770895868849,5000.0,0.0002352,2]
[405171171,1770895924250,-300.0,0.00023655,2]
[405171172,1770895924279,-0.72852356,0.00023656,2]
[405171173,1770895924324,-300.0,0.00023656,2]
[405171174,1770895924335,-98.54295288,0.00023656,2]
[405171175,1770895924345,-300.72852356,0.00023656,2]
[405171180,1770896120192,213.15057427,0.00013273,2]
[405171181,1770896131245,150.69529135,0.00021918,2]
[405171182,1770896224716,412.42222919,0.00013273,2]
[405171186,1770896283700,5000.0,0.0002352,2]
[405171187,1770896305932,1221.00694229,0.0002352,2]
[405171194,1770896442446,265.12851607,0.0002352,2]
[405171195,1770896473901,1943.67151068,0.0002352,2]
[405171204,1770896593437,297.8649857,0.00022648,2]
[405171205,1770896667547,1329.46580546,0.0002352,2]
[405171309,1770896941091,370.87839406,0.00022777,2]
[405171311,1770896944497,1801.93483646,0.00022818,2]
[405171312,1770896947321,900.66975713,0.00022777,2]
[405171313,1770896950221,1601.19067934,0.00022777,2]
[405171314,1770896952948,2499.35857603,0.00022777,2]
[405171378,1770897038193,-343.37825535,0.00023598,2]
[405171379,1770897038203,-150.0,0.00023617,3]
[405171381,1770897038212,-300.0,0.00023638,2]
[405171383,1770897038222,-300.0,0.00023638,2]
[405171385,1770897038231,-300.0,0.00023638,2]
[405171387,1770897038240,-300.0,0.00023638,2]
[405171389,1770897038250,-2463.67,0.00023639,10]
[405171390,1770897038259,-2053.06,0.00023639,10]
[405171392,1770897038268,-1200.0,0.00023648,2]
[405171394,1770897038279,-24958.32392667,0.00023649,2]
[405171396,1770897038291,-4962.92983743,0.00023649,2]
[405171622,1770897041646,692.75788181,0.00022818,2]
[405171989,1770897045307,-3089.94293405,0.00023649,2]
[405172093,1770897046259,-16988.80330185,0.00023649,2]
[405172096,1770897046270,-475.27570418,0.00023649,2]
[405172098,1770897046279,-196.98238969,0.00023649,2]
[405172100,1770897046289,-500.0,0.00023649,2]
[405172102,1770897046298,-500.0,0.00023649,2]